Cogmind - Beta 11 X11 @@@ ROGUE MODE // 2022.03.16 @ 09:36:59 Player: Yosh Result: Destroyed by G-47 Trooper with Particle Gun Performance ------------- Evolutions (2) 1000 Regions Visited (7) 1400 Robots Destroyed (105) 525 Value Destroyed (3396) 3396 Prototype IDs (2) 40 Alien Tech Used (0) 0 Bonus (967) 967 TOTAL SCORE: 7328 Bonus ------- High Alert Combat Kills 236 Follower Combat Kills 116 Entered Garrisons 200 Used RIF Installer 500 Friendly Fire -85 Cogmind --------- Core Integrity 0/550 Matter 300/300 Energy 267/275 System Corruption 0% Temperature Cool (12) Movement Treading (230) Ox1 Location -8/Materials Parts ------- > --- POWER (1) -------- Deuterium Engine > --- PROPULSION (3) --- Light Treads Advanced Treads Advanced Treads > --- UTILITY (4) ------ Huge Storage Unit Seismic Detector Improved Medium Armor Plating Improved Medium Armor Plating > --- WEAPON (3) ------- Greatsword > --- INVENTORY (25) --- Light Treads Light Treads Light Treads Wheel Armored Wheel Improved Heat Sink Machine Analyzer Improved Sensor Array Improved Signal Interpreter Improved Medium Armor Plating Improved Medium Armor Plating Hacking Suite Hacking Suite Relay Coupler [NC] (23) Relay Coupler [NC] (21) Relay Coupler [Grunt] (29) Relay Coupler [Sentry] (19) Relay Coupler [Hunter] (14) Relay Coupler [Hunter] (12) Rocket Launcher Greatsword Greatsword Peak State ------------ > --- POWER ------------ Deuterium Engine > --- PROPULSION ------- Light Treads Advanced Treads Advanced Treads > --- UTILITY ---------- Improved Heat Sink Huge Storage Unit Improved Medium Armor Plating Improved Medium Armor Plating > --- WEAPON ----------- Heavy Assault Rifle Greatsword > --- INVENTORY -------- Light Treads Light Treads Light Treads Wheel Armored Wheel Machine Analyzer Sensor Array Improved Signal Interpreter Improved Terrain Scanner Improved Terrain Scan Processor Improved Terrain Scan Processor Seismic Detector Improved Medium Armor Plating Improved Medium Armor Plating Hacking Suite Relay Coupler [NC] Relay Coupler [NC] Relay Coupler [Grunt] Relay Coupler [Sentry] Relay Coupler [Hunter] Relay Coupler [Hunter] Greatsword Greatsword [Rating: 38] Favorites ----------- Power Ion Engine Engine Ion Engine Power Core Light Nuclear Core Propulsion Advanced Treads Treads Advanced Treads Leg Aluminum Leg Wheel Armored Wheel Utility Huge Storage Unit Device Improved Heat Sink Storage Huge Storage Unit Processor Targeting Computer Protection Hardened Light Armor Plating Weapon Autogun Energy Gun EM Pulse Gun Ballistic Gun Autogun Launcher Rocket Launcher Slashing Weapon Greatsword Build | -11 -10 -10 -9 -9 -8 -8 -8 ------- Run | Scr Mat Min Mat Min Mat Gar Mat Slots Evolved 4 | . . . 2 . 2 . . Power . | . . . . . . . . Propulsion 1 | . . . . . 1 . . Utility 2 | . . . 1 . 1 . . Weapon 1 | . . . 1 . . . . Parts Attached 75 | 6 18 . 12 1 4 31 3 Power 9 | 1 2 . 1 1 1 2 1 Engine 7 | 1 2 . 1 . . 2 1 Core 2 | . . . . 1 1 . . Reactor . | . . . . . . . . Propulsion 20 | 2 5 . 3 . 1 8 1 Treads 14 | 2 2 . 1 . 1 7 1 Leg 2 | . 2 . . . . . . Wheel 4 | . 1 . 2 . . 1 . Hover . | . . . . . . . . Flight . | . . . . . . . . Utility 16 | 1 3 . 3 . 1 7 1 Device 4 | . . . . . . 3 1 Storage 3 | 1 1 . 1 . . . . Processor 2 | . 2 . . . . . . Hackware . | . . . . . . . . Protection 7 | . . . 2 . 1 4 . Artifact . | . . . . . . . . Weapon 30 | 2 8 . 5 . 1 14 . Energy Gun 3 | 2 1 . . . . . . Energy Cannon . | . . . . . . . . Ballistic Gun 17 | . 7 . 3 . 1 6 . Ballistic Cannon . | . . . . . . . . Launcher 6 | . . . 2 . . 4 . Special Weapon . | . . . . . . . . Impact Weapon . | . . . . . . . . Slashing Weapon 4 | . . . . . . 4 . Piercing Weapon . | . . . . . . . . Special Melee Weapon . | . . . . . . . . Unidentified Prototypes . | . . . . . . . . Parts Lost 28 | . 8 . . . 2 17 1 Power 4 | . 2 . . . 1 1 . Propulsion 5 | . 2 . . . . 3 . Utility 6 | . . . . . . 6 . Weapon 13 | . 4 . . . 1 7 1 Highest Loss Streak 7 | . 2 . . . 1 7 1 To Critical Strikes . | . . . . . . . . Average Slot Usage (%) 95 | . 98 100 100 100 98 89 87 Engine 7 | . 13 14 11 . . 6 9 Core 2 | . . . . 10 9 . . Treads 18 | . 17 28 11 11 18 25 27 Wheel 5 | . 5 . 10 11 9 . . Device 2 | . . . . . . 8 9 Storage 10 | . 14 14 11 11 9 9 9 Processor 9 | . 13 14 11 11 9 8 . Protection 8 | . . . 11 11 18 6 18 Energy Gun 1 | . 7 . . . . . . Ballistic Gun 24 | . 19 28 32 33 25 20 6 Slashing Weapon 1 | . . . . . . 1 9 Naked Turns . | . . . . . . . . Heaviest Build 112 | 14 31 31 99 99 102 110 112 Greatest Support 66 | 40 40 40 40 12 12 66 64 Greatest Overweight (x) 9 | 1 2 . 9 8 8 9 1 Average Overweight (x) 3 | . 1 . 7 8 8 1 1 Largest Inventory Capacity 25 | 8 15 15 25 25 25 25 25 Average Capacity 22 | 6 14 15 24 25 25 25 25 Most Carried 25 | 6 15 15 25 25 25 25 25 Average Carried 20 | 3 10 15 23 25 23 23 24 Final Capacity 25 | 8 15 15 25 25 25 25 25 Final Carried 25 | 6 15 15 25 25 25 25 24 Class Distribution -------------------- 38% | Gunner 28% | Mutant 19% | Scavenger-Mutant 11% | Tank Dominant Class ---------------- Mutant | -10/Materials Mutant | -10/Mines Gunner | -9/Materials Gunner | -9/Mines Tank | -8/Materials Scavenger-Mutant | -8/Garrison Mutant | -8/Materials Resources | -11 -10 -10 -9 -9 -8 -8 -8 ----------- Run | Scr Mat Min Mat Min Mat Gar Mat Matter Collected 2947 | 248 229 167 718 237 550 768 30 Remotely 279 | . . . . . . 279 . Salvage Created 3324 | . 406 222 656 255 670 726 389 Parts 252 | . 38 19 52 19 41 58 25 Haulers Intercepted 6 | . 2 . 3 . 1 . . Recyclers Shooed . | . . . . . . . . Parts Field Recycled . | . . . . . . . . Retrieved Matter . | . . . . . . . . Parts Self-Destructed . | . . . . . . . . Prevented . | . . . . . . . . Kills | -11 -10 -10 -9 -9 -8 -8 -8 ------- Run | Scr Mat Min Mat Min Mat Gar Mat Combat Hostiles Destroyed 72 | . 11 2 12 6 9 25 7 Melee 8 | . . . . . . 1 7 Guns 44 | . 8 2 6 6 9 13 . AOE 20 | . 3 . 6 . . 11 . Classes Destroyed 16 | . 5 2 3 2 1 2 1 Worker 4 | . . 2 2 . . . . Builder 3 | . . . 3 . . . . Tunneler 8 | . . 4 . 1 3 . . Hauler 6 | . 2 . 3 . 1 . . Recycler 2 | . . . 1 1 . . . Mechanic 1 | . . . . . 1 . . Operator 6 | . 1 . 2 . 1 . 2 Watcher 5 | . 1 . 3 . . . 1 Swarmer 23 | . 8 . 7 . . 8 . Cutter 2 | . . . . . . 2 . Saboteur 1 | . . . . . . 1 . Grunt 34 | . 3 2 2 3 9 11 4 Duelist 2 | . . . . . . . 2 Sentry 7 | . . . 3 . . 3 1 Demolisher 1 | . . . . 1 . . . Assembled 2 | . . . . 2 . . . Best Kill Streak 10 | . 6 3 6 3 4 10 4 Combat Bots Only 10 | . 5 2 5 3 3 10 3 Max Kills in Single Turn 5 | . 3 1 5 1 1 4 1 Gunslinging 1 | . . . . . . 1 . Exploded 4 | . 3 . 4 . . 4 . Melee 1 | . . . . . . 1 1 Uniques/NPCs Destroyed . | . . . . . . . . Combat | -11 -10 -10 -9 -9 -8 -8 -8 -------- Run | Scr Mat Min Mat Min Mat Gar Mat Damage Taken 4344 | . 820 29 191 181 654 1956 513 Core 670 | . 78 . 32 . 76 392 92 Absorbed by Shields . | . . . . . . . . Core Remaining (%) 86 | 100 . 68 . 92 . . . Volleys Fired 231 | . 52 14 44 15 43 63 . Largest 3 | . 2 2 3 3 3 3 . Hottest 80 | . 80 46 69 69 69 69 . Shots Fired 551 | . 94 28 124 45 122 138 . Gun 541 | . 94 28 121 45 122 131 . Cannon . | . . . . . . . . Launcher 10 | . . . 3 . . 7 . Special . | . . . . . . . . Kinetic 516 | . 69 28 121 45 122 131 . Thermal . | . . . . . . . . Explosive 10 | . . . 3 . . 7 . Electromagnetic 25 | . 25 . . . . . . Robot Hit Streak 16 | . 12 16 8 6 10 15 . Robot Miss Streak 5 | . 3 3 5 4 2 3 . Penetration Max . | . . . . . . . . Secondary Targets 4 | . . . 1 . . 3 . Max Gunslinging Chain 1 | . . . 1 . . 1 . Shots Hit Robots 362 | . 59 21 69 24 78 84 27 Core Hits 167 | . 24 11 36 12 31 44 9 Critical Kills . | . . . . . . . . Critical Parts Destroyed 3 | . . . 1 . 1 1 . Critical Strikes 4 | . . . 1 . 1 1 1 Destroy 3 | . . . 1 . 1 1 . Sever 1 | . . . . . . . 1 Melee Attacks 40 | . . . . . . 5 35 Impact . | . . . . . . . . Slashing 40 | . . . . . . 5 35 Piercing . | . . . . . . . . Sneak Attacks 3 | . . . . . . 1 2 Combat Hostiles 1 | . . . . . . 1 . Follow-up Attacks . | . . . . . . . . Damage Inflicted 7922 | 6 706 313 1569 381 1208 2139 1600 Guns 4740 | . 567 313 1063 381 1200 1216 . Cannons . | . . . . . . . . Explosions 1427 | . 139 . 504 . . 784 . Melee 1728 | . . . . . . 139 1589 Ramming 27 | 6 . . 2 . 8 . 11 Kinetic 4548 | . 375 313 1063 381 1200 1216 . Thermal 139 | . 139 . . . . . . Explosive 1288 | . . . 504 . . 784 . Electromagnetic 192 | . 192 . . . . . . Impact . | . . . . . . . . Slashing 1728 | . . . . . . 139 1589 Piercing . | . . . . . . . . Highest Corruption . | . . . . . . . . Average Corruption . | . . . . . . . . Corruption Purged . | . . . . . . . . Corruption Blocked . | . . . . . . . . Overload Shots . | . . . . . . . . Overflow Damage 403 | . 18 . 59 . . 60 266 Projectiles . | . . . . . . . . Explosions 137 | . 18 . 59 . . 60 . Melee 266 | . . . . . . . 266 Knockbacks 2 | 1 . . . . 1 . . Impact 2 | 1 . . . . 1 . . Kinetic . | . . . . . . . . Secondary . | . . . . . . . . Self-Inflicted Damage 228 | . 34 . 1 . . 193 . Shots 6 | . 1 . . . . 5 . Rammed 10 | 1 1 . 1 . 5 . 2 Targets Rammed 10 | 1 1 . 1 . 5 . 2 Kicked . | . . . . . . . . Crushed . | . . . . . . . . Highest Temperature 394 | . 84 21 152 92 394 106 16 Average Temperature 82 | . 29 7 39 41 178 36 11 Received Heat Transfer 1752 | . 180 18 75 12 414 729 324 Effects 3 | . . . . . 3 . . Shutdowns 1 | . . . . . 1 . . Matter Decay 2 | . . . . . 2 . . Siege Activations . | . . . . . . . . Robots Corrupted . | . . . . . . . . Combat Hostiles . | . . . . . . . . Parts Fried 2 | . 2 . . . . . . Impact Corruptions . | . . . . . . . . Robots Melted . | . . . . . . . . Combat Hostiles . | . . . . . . . . Parts Melted . | . . . . . . . . Heat Transferred 250 | . 250 . . . . . . Parts Sabotaged 4 | . . . . . . 4 . Parts Stolen . | . . . . . . . . Parts Stripped . | . . . . . . . . Power Chain Reactions 2 | . 2 . . . . . . Missiles Intercepted . | . . . . . . . . Alert | -11 -10 -10 -9 -9 -8 -8 -8 ------- Run | Scr Mat Min Mat Min Mat Gar Mat Peak Influence 800 | . 263 109 500 308 173 800 508 Initial 390 | . . 29 42 153 41 89 390 Average 280 | . 112 90 284 208 127 546 400 Maximum Alert Level 3 | . 1 . 2 1 . 3 2 Low Security (%) 46 | 100 80 100 29 44 100 10 . Level 1 31 | . 19 . 54 55 . 20 58 Level 2 15 | . . . 16 . . 35 41 Level 3 7 | . . . . . . 33 . Level 4 . | . . . . . . . . Level 5 . | . . . . . . . . High Security . | . . . . . . . . Max Security . | . . . . . . . . Squads Dispatched 8 | . 2 1 2 . 2 . 1 Investigation 3 | . 2 . 1 . . . . Extermination . | . . . . . . . . Reinforcement 3 | . . . 1 . 1 . 1 Assault 2 | . . 1 . . 1 . . Garrison . | . . . . . . . . Intercept . | . . . . . . . . Searches Triggered . | . . . . . . . . Construction Impeded . | . . . . . . . . Haulers Reinforced . | . . . . . . . . Active Scanning Responses . | . . . . . . . . Cargo Convoy Interrupts . | . . . . . . . . Stealth | -11 -10 -10 -9 -9 -8 -8 -8 --------- Run | Scr Mat Min Mat Min Mat Gar Mat Distress Signals 11 | . . . 2 4 1 . 4 Communications Jammed . | . . . . . . . . Distress Signals . | . . . . . . . . Times Spotted 120 | . 23 2 23 7 19 27 19 Peak Tracking Total 9 | . 6 2 6 3 5 9 6 Tactical Retreats 7 | . 2 . . 1 2 1 1 Traps | -11 -10 -10 -9 -9 -8 -8 -8 ------- Run | Scr Mat Min Mat Min Mat Gar Mat Traps Triggered 6 | . . . . . . 6 . Indirectly . | . . . . . . . . Trap Hack Attempts . | . . . . . . . . Triggered . | . . . . . . . . Disarmed . | . . . . . . . . Reprogrammed . | . . . . . . . . Reused . | . . . . . . . . Traps Extracted . | . . . . . . . . Installed . | . . . . . . . . Triggered . | . . . . . . . . Machines | -11 -10 -10 -9 -9 -8 -8 -8 ---------- Run | Scr Mat Min Mat Min Mat Gar Mat Machines Disabled 9 | . 1 . 2 1 . 5 . Max in Single Turn 1 | . 1 . 1 1 . 1 . Garrison Relay 3 | . . . . . . 3 . Phase Generator 1 | . . . . . . 1 . Machines Sabotaged . | . . . . . . . . Garrisons Compromised . | . . . . . . . . Overloaded Fab Kills . | . . . . . . . . Hacking | -11 -10 -10 -9 -9 -8 -8 -8 --------- Run | Scr Mat Min Mat Min Mat Gar Mat Machines Accessed 16 | . 8 . 5 . 2 . 1 Terminals 12 | . 7 . 4 . 1 . . Fabricators . | . . . . . . . . Repair Stations . | . . . . . . . . Recycling Units 3 | . 1 . 1 . . . 1 Scanalyzers . | . . . . . . . . Garrison Access 1 | . . . . . 1 . . Total Hacks 43 | . 24 . 13 . 5 . 1 Successful 22 | . 12 . 7 . 2 . 1 Failed 21 | . 12 . 6 . 3 . . Catastrophic 3 | . 1 . 2 . . . . Database Lockouts . | . . . . . . . . Manual 37 | . 22 . 11 . 4 . . Terminals 36 | . 20 . 12 . 4 . . Fabricators . | . . . . . . . . Repair Stations . | . . . . . . . . Recycling Units 6 | . 4 . 1 . . . 1 Scanalyzers . | . . . . . . . . Garrison Access 1 | . . . . . 1 . . Terminal Hacks 10 | . 6 . 4 . . . . Prototype ID Bank 1 | . 1 . . . . . . Branch Access Points 2 | . . . 2 . . . . Terminal Index 1 | . 1 . . . . . . Alert Level 2 | . 1 . 1 . . . . Hauler Manifests 2 | . 1 . 1 . . . . Registered Components 1 | . 1 . . . . . . Zone Layout 1 | . 1 . . . . . . Fabricator Hacks . | . . . . . . . . Repair Station Hacks . | . . . . . . . . Recycling Unit Hacks 1 | . . . . . . . 1 Report Inventory 1 | . . . . . . . 1 Scanalyzer . | . . . . . . . . Garrison Access Hacks 1 | . . . . . 1 . . Unlock Access 1 | . . . . . 1 . . Unauthorized Hacks 10 | . 6 . 3 . 1 . . Terminals 8 | . 5 . 2 . 1 . . Assimilate 3 | . 3 . . . . . . Botnet 4 | . 1 . 2 . 1 . . Operators 1 | . 1 . . . . . . Fabricators . | . . . . . . . . Repair Stations . | . . . . . . . . Recycling Units 2 | . 1 . 1 . . . . Tunnel 2 | . 1 . 1 . . . . Scanalyzers . | . . . . . . . . Garrison Access . | . . . . . . . . Data Cores Recovered 1 | . . . . . . . 1 Used . | . . . . . . . . Hacking Detections 13 | . 7 . 4 . 2 . . Full Trace Events 1 | . 1 . . . . . . Feedback Events . | . . . . . . . . Feedback Blocked . | . . . . . . . . Robot Schematics Acquired . | . . . . . . . . Robots Built . | . . . . . . . . Authchips . | . . . . . . . . Time . | . . . . . . . . Total Robot Build Rating . | . . . . . . . . Part Schematics Acquired . | . . . . . . . . Parts Built . | . . . . . . . . Authchips . | . . . . . . . . Time . | . . . . . . . . Total Part Build Rating . | . . . . . . . . Parts Repaired . | . . . . . . . . Time . | . . . . . . . . Parts Recycled . | . . . . . . . . Recycled Matter . | . . . . . . . . Retrieved Matter . | . . . . . . . . Retrieved Components . | . . . . . . . . Parts Scanalyzed . | . . . . . . . . Part Schematics Acquired . | . . . . . . . . Parts Damaged . | . . . . . . . . Bothacking | -11 -10 -10 -9 -9 -8 -8 -8 ------------ Run | Scr Mat Min Mat Min Mat Gar Mat Used RIF Installer 1 | . . . . . . 1 . Robots Hacked . | . . . . . . . . Non-combat . | . . . . . . . . Combat . | . . . . . . . . Robot Hacks Applied . | . . . . . . . . Relay Couplers Released 9 | . . . . . . 9 . Machine Destruction 9 | . . . . . . 9 . Fabnet Peak Effective % . | . . . . . . . . Robots Rewired . | . . . . . . . . Allies Hacked . | . . . . . . . . Hacks Repelled . | . . . . . . . . Allies | -11 -10 -10 -9 -9 -8 -8 -8 -------- Run | Scr Mat Min Mat Min Mat Gar Mat Total Allies 2 | . 1 1 . . . . . Largest Group 2 | . 1 2 2 . . . . Highest-Rated Group 41 | . 10 41 41 . . . . Highest-Rated Ally 31 | . 10 31 31 . . . . Total Orders . | . . . . . . . . Ally Attacks 20 | . . . 20 . . . . Total Damage 231 | . . . 231 . . . . Kills 5 | . . . 5 . . . . Allies Corrupted . | . . . . . . . . Allies Melted . | . . . . . . . . Intel | -11 -10 -10 -9 -9 -8 -8 -8 ------- Run | Scr Mat Min Mat Min Mat Gar Mat Robot Analysis Total . | . . . . . . . . Derelict Logs Recovered 1 | . . . . 1 . . . Drone Launches . | . . . . . . . . Drone Recoveries . | . . . . . . . . Exploration | -11 -10 -10 -9 -9 -8 -8 -8 ------------- Run | Scr Mat Min Mat Min Mat Gar Mat Turns Passed 5689 | 94 994 355 1110 713 610 1238 575 Spaces Moved 2203 | 54 480 181 450 254 212 415 157 Core 8 | 8 . . . . . . . Treads 1008 | 46 228 181 30 . . 366 157 Legs 2 | . 2 . . . . . . Wheels 1185 | . 250 . 420 254 212 49 . Hover . | . . . . . . . . Flight . | . . . . . . . . Fastest Speed 50 | 50 110 160 160 210 210 210 230 Average Speed 191 | 144 134 160 208 210 210 226 230 Slowest Speed 312 | 160 190 160 215 210 210 312 230 Overloaded Moves . | . . . . . . . . Propulsion Burnouts . | . . . . . . . . Robots Hopped . | . . . . . . . . Cave-ins Triggered . | . . . . . . . . Exploration Rate (%) 37 | 4 86 38 39 35 15 60 20 Regions Visited 7 Branch Regions 2 Pre-discovered Areas 2 | . 1 . 1 . . . . Known Exits Taken 2 | . . . 1 . 1 . . Unknown Exits Taken 4 | 1 1 1 . 1 . . . Scrap Searched 1 | . . 1 . . . . . Spaces Dug 8 | . . . . . . 5 3 Terrain Destroyed 132 | . 7 . 20 . . 102 3 Melee 3 | . . . . . . . 3 Projectile . | . . . . . . . . AOE 129 | . 7 . 20 . . 102 . Terrain Rammed . | . . . . . . . . Walls Destroyed . | . . . . . . . . Machines Disabled . | . . . . . . . . Actions | -11 -10 -10 -9 -9 -8 -8 -8 --------- Run | Scr Mat Min Mat Min Mat Gar Mat Total 3207 | 66 750 225 558 409 297 598 304 Wait 532 | . 167 29 17 139 26 56 98 Move 2195 | 53 479 180 449 253 211 413 157 Hop . | . . . . . . . . Pick Up 73 | 6 20 1 21 . 5 17 3 Fast Attach 26 | 6 8 . . 1 . 11 . Attach 24 | . 6 . 2 . 3 13 . Detach 4 | . 3 . . . . 1 . Swap 25 | . 4 . 10 . 1 7 3 Drop 43 | . 10 1 14 1 3 8 6 Fire 231 | . 52 14 44 15 43 63 . Melee 40 | . . . . . . 5 35 Ram 1 | . . . 1 . . . . Kick . | . . . . . . . . Crush 9 | 1 1 . . . 5 . 2 Escape Stasis 4 | . . . . . . 4 . Rewire . | . . . . . . . . Trap . | . . . . . . . . Miscellaneous . | . . . . . . . . Route ------- -11/Scrapyard -10/Materials (discovered 3 exits: *Mat x2 / [*Min]) -10/Mines -9/Materials (discovered 2 exits: *Min x2) -9/Mines -8/Materials (discovered 2 exits: Fac / Gar) -8/Garrison -8/Materials History --------- Turn | Location | Event 8 | -11/Scrapyard | Discovered new exit (range 15) 95 | -11/Scrapyard | Entered Materials 302 | -10/Materials | Build established: Mutant 345 | -10/Materials | Discovered new exit (range 11) 598 | -10/Materials | Discovered new exit (range 9) 842 | -10/Materials | Discovered new exit (range 11) 1089 | -10/Materials | Entered Mines 1089 | -10/Mines | Accompanied by 1 ally 1414 | -10/Mines | Discovered new exit (range 11) 1417 | -10/Mines | Met a Derelict testing a Signal Generator 1440 | -10/Mines | Found Signal Generator 1444 | -10/Mines | Entered Materials 1444 | -9/Materials | Accompanied by 2 allies 1444 | -9/Materials | Evolved 2 slots: Utility x1, Weapon x1 1773 | -9/Materials | Build established: Gunner 1813 | -9/Materials | Discovered new exit (range 13) 2023 | -9/Materials | Identified exit to Mines 2554 | -9/Materials | Entered Mines 2674 | -9/Mines | Assembled infested the area 3122 | -9/Mines | Discovered new exit (range 10) 3267 | -9/Mines | Entered Materials 3267 | -8/Materials | Evolved 2 slots: Propulsion x1, Utility x1 3268 | -8/Materials | Identified exit to Factory 3714 | -8/Materials | Build established: Tank 3875 | -8/Materials | Identified exit to Garrison 3877 | -8/Materials | Entered Garrison 3888 | -8/Garrison | Installed Relay Interface Framework 3990 | -8/Garrison | Triggered checkpoint 4002 | -8/Garrison | Triggered checkpoint 4026 | -8/Garrison | Triggered checkpoint 4047 | -8/Garrison | Lost 5 parts (1n2u2w) 4050 | -8/Garrison | Destroyed 10 combat bots 4256 | -8/Garrison | Phase Generator disabled 4388 | -8/Garrison | Triggered checkpoint 4396 | -8/Garrison | Garrison Relay disabled 4462 | -8/Garrison | Core integrity fell below 50% 4529 | -8/Garrison | Lost 7 parts (1p1n2u3w) 4693 | -8/Garrison | Triggered checkpoint 4731 | -8/Garrison | Garrison Relay disabled 4775 | -8/Garrison | Discovered new exit (range 8) 4811 | -8/Garrison | Build established: Scavenger-Mutant 5026 | -8/Garrison | Core integrity fell below 20% 5115 | -8/Garrison | Entered Materials 5474 | -8/Materials | Build established: Mutant 5690 | -8/Materials | Destroyed by G-47 Trooper with Particle Gun Last Messages --------------- 05618_ K-01 Serf collects debris. 05619_ R-06 Scavenger collects Hvy. Assault Rifle. 05621_ K-01 Serf collects debris. 05623_ R-06 Scavenger collects Beam Rifle. 05625_ Sneak attack on O-16 Technician. 05625_ O-16 Technician destroyed. 05632_ Dropped Imp. Terrain Scan Processor. 05633_ Acquired Hacking Suite. 05634_ Dropped Imp. Terrain Scanner. 05634_ Sneak attack on R-06 Scavenger. 05634_ Destroyed Tractor Beam. 05634_ Destroyed Lgt. Ion Engine. 05655_ M-13 Machinist fits Backup Laser I on G-47 Trooper. 05657_ K-01 Serf cleans the Nuclear Reactor. 05661_ K-01 Serf collects debris. 05683_ Critical hit (Burn: +37). 05684_ K-01 Serf cleans the Nuclear Reactor. 05686_ Slammed into G-50 Soldier. 05688_ Slammed into G-47 Trooper. 05690_ K-01 Serf cleans the Nuclear Reactor. Map ----- +----------------------------------------------------+ | ?????????????????????????????????????????????????? | | ?????????????????????????????????????????????????? | | ?????????????????????????????????????????????????? | | ?????????????????????????????????????????????????? | | ?????????????????????????????????????????????????? | | ?????????????????????????????????????????????????? | | ?????????????????????????????????????????????????? | | ?????????????????????????????????????????????????? | | ?????????????????????????????????????????????????? | | ?????????????????????????????????????????????????? | | ???????????????????????? ????????????????????????? | | ???????????????????????# ????????????????????????? | | ???????????????????????# ????????????????????????? | | ???????????????????????#w########+###????????????? | | ???????????????????????# ?????????????? | | ???????????????????????# ?????????????? | | ???????????????????????# #?????????????? | | ???????????????????????# """ r#?????????????? | | ???????????????????????# k""" #?????????????? | | ??????????????########## """ ##????????????? | | ??????????????? ! + ?????????????? | | ???????????????? # #??????????????? | | ???????????????? """ # """ #??????????????? | | ????????????????""""" g# """ #??????????????? | | ????????????????""""" g/ g """ #??????????????? | | ????????????????""""" #%@ #??????????????? | | ??????????????? """ ### k #??????????????? | | ?????????????? ] #?# " #??????????????? | | ?????????????###########?#=!T! #??????????????? | | ?????????????????????????#=%" ################ | | ??????????????????######## % *%= | | ????????????????# [%%% =!! | | ????????????????# ########+#### % | | ???????????????????????#=%=!* ###########+######## | | ???????????????????????#!*!%% #???????# =! ###?? | | ???????????????????????# """ #???????# ##### | | ???????????????????????# """" #???????# "" # | | ???????????????????????# """" #???????# "Y # "" | | ???????????????????????# #???????# "" # "" | | ???????????????????????########???????# # "" | | ??????????????????????????????????????######## | | ?????????????????????????????????????????????# "" | | ?????????????????????????????????????????????# "" | | ?????????????????????????????????????????????# "" | | ?????????????????????????????????????????????# | | ?????????????????????????????????????????????# "" | | ?????????????????????????????????????????????# "" | | ????????????????????????????????????########?# "" | | ????????????????????????????????????# #?# | | ????????????????????????????????????# ! ####### | +----------------------------------------------------+ Best States ------------- Heat Dissipation 64 Energy Generation 14 Energy Capacity 275 Matter Stores 300 Matter Capacity 300 Sight Range 16 Terrain Scan Density 10 Armor Coverage 450 Evasion (%) 40 Targeting Accuracy 5 Recoil Reduction 3 Item Schematics ----------------- None Robot Schematics ------------------ None Fabricated ------------ Nothing Alien Tech Used ----------------- None Achievements -------------- Oh No You Don't! Challenges ------------ None Game ------ Seed DynamicAssemblyLoader Manual? 0 Play Time 00:39:36 Cumulative 43.1 hours Start 2022.03.06 @ 11:59:23 End 2022.03.16 @ 09:36:59 Sessions 3 Manual Loads 0 Difficulty Rogue Special Mode None Game No. 29 Rogue 29 Adventurer 0 Explorer 0 Win Type - Total 1 Types 1/0/0/0/0/0/0/0/0 Lore% 33 Gallery% 41 Achievement% 37 Wizard Run 0 Options --------- ASCII 1 Keyboard 1 Movement Vi Keybinds 0 Fullscreen 1 Font 18/X11 Map View 76x50 Tactical HUD 1 Map Filters NONE Filters NONE Steam 1 RUN: ddce17dc-3739-4077-854e-cb5c182e2d55